[Event "*** Titled Tuesday 3|2 Blitz"]
[Site "Chess.com"]
[Date "2015.09.01"]
[Round "2"]
[White "Tesla17"]
[Black "Mugzyyy"]
[Result "0-1"]
[WhiteElo "2129"]
[BlackElo "2604"]
[TimeControl "180+2"]
[EndTime "11:19:20 PDT"]
[Termination "Mugzyyy won by resignation"]

1. d4 {[%clk 0:03:01.1]} 1... d5 {[%clk 0:02:57.8]} 2. c4 {[%clk 0:03:02.7]}
2... e6 {[%clk 0:02:58.7]} 3. Nc3 {[%clk 0:03:04.2]} 3... Nf6 {[%clk 0:02:59.4]}
4. Bg5 {[%clk 0:03:05.8]} 4... Be7 {[%clk 0:03:00.4]} 5. e3 {[%clk 0:03:07.3]}
5... Nbd7 {[%clk 0:02:58.8]} 6. cxd5 {[%clk 0:03:08.6]} 6... exd5 {[%clk
0:02:56.6]} 7. Bd3 {[%clk 0:03:09.1]} 7... Nf8 {[%clk 0:02:57.9]} 8. Qc2 {[%clk
0:03:08.8]} 8... Ne6 {[%clk 0:02:58.8]} 9. Bh4 {[%clk 0:03:09.3]} 9... c5 {[%clk
0:02:59.2]} 10. Nf3 {[%clk 0:02:55.6]} 10... c4 {[%clk 0:02:58.2]} 11. Bf5
{[%clk 0:02:56.2]} 11... g6 {[%clk 0:02:58.1]} 12. Bh3 {[%clk 0:02:52.4]} 12...
a6 {[%clk 0:02:52.4]} 13. O-O {[%clk 0:02:48.4]} 13... b5 {[%clk 0:02:53.6]} 14.
a3 {[%clk 0:02:49.1]} 14... h6 {[%clk 0:02:48.9]} 15. Bg3 {[%clk 0:02:35.6]}
15... h5 {[%clk 0:02:43.8]} 16. Be5 {[%clk 0:02:34]} 16... O-O {[%clk
0:02:43.8]} 17. Rad1 {[%clk 0:02:27.9]} 17... Ng4 {[%clk 0:02:43.4]} 18. e4
{[%clk 0:02:26]} 18... Nxe5 {[%clk 0:02:39.7]} 19. Nxe5 {[%clk 0:02:22.3]} 19...
Nf4 {[%clk 0:02:30.9]} 20. Bxc8 {[%clk 0:02:17.8]} 20... Rxc8 {[%clk 0:02:32]}
21. g3 {[%clk 0:02:15.8]} 21... Ne6 {[%clk 0:02:25.9]} 22. Nxd5 {[%clk
0:02:15.3]} 22... Bd6 {[%clk 0:02:25.2]} 23. Nf3 {[%clk 0:02:09.5]} 23... a5
{[%clk 0:02:21.9]} 24. Qd2 {[%clk 0:02:06.7]} 24... Kg7 {[%clk 0:02:19.5]} 25.
Rfe1 {[%clk 0:02:02.8]} 25... Re8 {[%clk 0:02:15.3]} 26. e5 {[%clk 0:01:48.2]}
26... Bxa3 {[%clk 0:02:15.7]} 27. Nf6 {[%clk 0:01:41.9]} 27... Bb4 {[%clk
0:02:15.6]} 28. Nxe8+ {[%clk 0:01:42.4]} 28... Qxe8 {[%clk 0:02:17]} 29. Qe3
{[%clk 0:01:43.1]} 29... Bxe1 {[%clk 0:02:17.8]} 30. Rxe1 {[%clk 0:01:44.7]}
30... Qc6 {[%clk 0:02:17.7]} 31. Ng5 {[%clk 0:01:20.1]} 31... b4 {[%clk
0:02:12.5]} 32. Ne4 {[%clk 0:01:19.3]} 32... c3 {[%clk 0:01:59.8]} 33. bxc3
{[%clk 0:01:20.1]} 33... bxc3 {[%clk 0:02:01.1]} 34. Rc1 {[%clk 0:01:21]} 34...
c2 {[%clk 0:02:02]} 35. Nc5 {[%clk 0:01:22.3]} 35... Nxd4 {[%clk 0:01:53.7]} 36.
Qxd4 {[%clk 0:00:38.6]} 36... Qxc5 {[%clk 0:01:54.1]} 37. Qf4 {[%clk 0:00:40.5]}
37... Qc4 {[%clk 0:01:49.8]} 38. Qf6+ {[%clk 0:00:41.1]} 38... Kg8 {[%clk
0:01:50.8]} 39. h3 {[%clk 0:00:38.9]} 39... a4 {[%clk 0:01:51.6]} 40. Kh2 {[%clk
0:00:34.7]} 40... a3 {[%clk 0:01:52.1]} 41. f4 {[%clk 0:00:33.6]} 41... Qe2+
{[%clk 0:01:50.4]} 0-1

[Event "*** Titled Tuesday 3|2 Blitz"]
[Site "Chess.com"]
[Date "2015.09.01"]
[Round "2"]
[White "Storne89"]
[Black "E-Shaposhnikov"]
[Result "0-1"]
[WhiteElo "2448"]
[BlackElo "2368"]
[TimeControl "180+2"]
[EndTime "11:19:29 PDT"]
[Termination "E-Shaposhnikov won by resignation"]

1. e4 {[%clk 0:03:01.9]} 1... c5 {[%clk 0:02:56.4]} 2. Nf3 {[%clk 0:03:02.7]}
2... e6 {[%clk 0:02:57.6]} 3. d4 {[%clk 0:03:03.6]} 3... cxd4 {[%clk 0:02:59.5]}
4. Nxd4 {[%clk 0:03:05.5]} 4... a6 {[%clk 0:03:01]} 5. Nc3 {[%clk 0:03:07.1]}
5... Qc7 {[%clk 0:03:00.7]} 6. Bd3 {[%clk 0:03:00.7]} 6... Nc6 {[%clk
0:03:01.2]} 7. Nxc6 {[%clk 0:02:58.7]} 7... dxc6 {[%clk 0:03:03.1]} 8. O-O
{[%clk 0:02:58.3]} 8... e5 {[%clk 0:03:05]} 9. Be3 {[%clk 0:02:56.5]} 9... Nf6
{[%clk 0:03:05.6]} 10. h3 {[%clk 0:02:54.9]} 10... b5 {[%clk 0:03:03.1]} 11. a4
{[%clk 0:02:55.2]} 11... Bb7 {[%clk 0:02:50.8]} 12. Ne2 {[%clk 0:02:53.3]} 12...
Be7 {[%clk 0:02:46.4]} 13. Ng3 {[%clk 0:02:43.4]} 13... g6 {[%clk 0:02:44.8]}
14. c4 {[%clk 0:02:44.4]} 14... b4 {[%clk 0:02:41.1]} 15. c5 {[%clk 0:02:38]}
15... a5 {[%clk 0:02:38.7]} 16. Qc2 {[%clk 0:02:31.2]} 16... O-O {[%clk
0:02:38.8]} 17. f4 {[%clk 0:02:32.4]} 17... Rad8 {[%clk 0:02:30.3]} 18. f5
{[%clk 0:02:31.9]} 18... Kg7 {[%clk 0:02:19.7]} 19. Bc4 {[%clk 0:02:14.2]} 19...
Nd7 {[%clk 0:02:08.8]} 20. Qf2 {[%clk 0:02:14.6]} 20... Nf6 {[%clk 0:01:48.6]}
21. Qf3 {[%clk 0:02:01.4]} 21... Rd4 {[%clk 0:01:43.6]} 22. Bxd4 {[%clk
0:01:48.8]} 22... exd4 {[%clk 0:01:39.6]} 23. Bd3 {[%clk 0:01:46.6]} 23... Bxc5
{[%clk 0:01:27.2]} 24. Ne2 {[%clk 0:01:47.8]} 24... Bd6 {[%clk 0:01:23.1]} 25.
g4 {[%clk 0:01:43.5]} 25... g5 {[%clk 0:01:19.6]} 26. Rae1 {[%clk 0:01:15]}
26... c5 {[%clk 0:01:17.4]} 27. Nc1 {[%clk 0:01:16.3]} 27... Re8 {[%clk
0:01:16.2]} 28. Nb3 {[%clk 0:01:17.1]} 28... c4 {[%clk 0:01:16.3]} 29. Rc1
{[%clk 0:01:00.4]} 29... Bh2+ {[%clk 0:00:58.6]} 30. Kg2 {[%clk 0:00:55.2]}
30... Nxe4 {[%clk 0:01:00]} 31. Rxc4 {[%clk 0:00:56.5]} 31... Nc5 {[%clk
0:00:56.7]} 32. f6+ {[%clk 0:00:50.5]} 32... Kh6 {[%clk 0:00:54.8]} 33. Rxc5
{[%clk 0:00:47.4]} 33... Qg3+ {[%clk 0:00:54.9]} 0-1

[Event "*** Titled Tuesday 3|2 Blitz"]
[Site "Chess.com"]
[Date "2015.09.01"]
[Round "2"]
[White "1stSecond"]
[Black "myaccount88"]
[Result "1-0"]
[WhiteElo "2367"]
[BlackElo "2151"]
[TimeControl "180+2"]
[EndTime "11:19:56 PDT"]
[Termination "1stSecond won by resignation"]

1. d4 {[%clk 0:03:01.9]} 1... Nf6 {[%clk 0:02:59.8]} 2. c4 {[%clk 0:03:01.3]}
2... e6 {[%clk 0:03:00]} 3. Nc3 {[%clk 0:03:02.2]} 3... Bb4 {[%clk 0:02:59.6]}
4. e3 {[%clk 0:03:03.1]} 4... O-O {[%clk 0:02:57.2]} 5. Ne2 {[%clk 0:03:02.4]}
5... d5 {[%clk 0:02:55.3]} 6. a3 {[%clk 0:03:02.3]} 6... Bd6 {[%clk 0:02:54.3]}
7. cxd5 {[%clk 0:03:02.6]} 7... exd5 {[%clk 0:02:54.7]} 8. g3 {[%clk 0:03:03.7]}
8... c6 {[%clk 0:02:18.4]} 9. Bg2 {[%clk 0:03:02.8]} 9... a5 {[%clk 0:02:16.2]}
10. O-O {[%clk 0:03:03.2]} 10... Nbd7 {[%clk 0:02:14]} 11. f3 {[%clk 0:03:01.7]}
11... Re8 {[%clk 0:02:05.8]} 12. e4 {[%clk 0:03:00.5]} 12... dxe4 {[%clk
0:02:06.3]} 13. fxe4 {[%clk 0:02:59.5]} 13... Bf8 {[%clk 0:02:06.4]} 14. e5
{[%clk 0:02:57.6]} 14... Ng4 {[%clk 0:01:58.8]} 15. h3 {[%clk 0:02:57.3]} 15...
Ndxe5 {[%clk 0:01:53.3]} 16. hxg4 {[%clk 0:02:57.3]} 16... Nxg4 {[%clk
0:01:46.8]} 17. Qd3 {[%clk 0:02:48]} 17... f5 {[%clk 0:01:01.8]} 18. Bf4 {[%clk
0:02:33.1]} 18... Bd6 {[%clk 0:00:49.2]} 19. Rae1 {[%clk 0:02:30.6]} 19... Rf8
{[%clk 0:00:40.7]} 20. Qc4+ {[%clk 0:02:27.5]} 20... Kh8 {[%clk 0:00:41.1]} 21.
Bxd6 {[%clk 0:02:24.7]} 21... Qxd6 {[%clk 0:00:41.5]} 22. Nf4 {[%clk 0:02:25.7]}
22... Qh6 {[%clk 0:00:36.8]} 23. Bh3 {[%clk 0:02:25.3]} 23... g5 {[%clk
0:00:32.1]} 24. Bxg4 {[%clk 0:02:21.3]} 24... gxf4 {[%clk 0:00:33.1]} 25. Rxf4
{[%clk 0:02:14.6]} 25... fxg4 {[%clk 0:00:29.9]} 26. Rxf8+ {[%clk 0:01:42.6]}
26... Qxf8 {[%clk 0:00:29.3]} 27. d5 {[%clk 0:01:43.6]} 27... Bd7 {[%clk
0:00:19.2]} 28. Qd4+ {[%clk 0:01:42.1]} 28... Kg8 {[%clk 0:00:19.5]} 29. Ne4
{[%clk 0:01:42.8]} 29... Qg7 {[%clk 0:00:09.4]} 30. Nf6+ {[%clk 0:01:43.1]}
30... Kh8 {[%clk 0:00:09.7]} 31. Qc3 {[%clk 0:01:19]} 31... Rf8 {[%clk
0:00:09.8]} 32. Nxd7 {[%clk 0:01:19.6]} 32... Qxc3 {[%clk 0:00:10.2]} 33. bxc3
{[%clk 0:01:20.3]} 33... Rf3 {[%clk 0:00:11.1]} 34. d6 {[%clk 0:01:18.4]} 34...
Rxg3+ {[%clk 0:00:11.6]} 35. Kf2 {[%clk 0:01:19.2]} 35... Rd3 {[%clk 0:00:12.4]}
36. Ne5 {[%clk 0:01:20.1]} 1-0

[Event "*** Titled Tuesday 3|2 Blitz"]
[Site "Chess.com"]
[Date "2015.09.01"]
[Round "2"]
[White "amazingoid"]
[Black "Penguininja"]
[Result "1-0"]
[WhiteElo "2308"]
[BlackElo "2134"]
[TimeControl "180+2"]
[EndTime "11:20:05 PDT"]
[Termination "amazingoid won by checkmate"]

1. e4 {[%clk 0:03:01.9]} 1... e6 {[%clk 0:02:57.4]} 2. d4 {[%clk 0:03:02.5]}
2... d5 {[%clk 0:02:57.9]} 3. Nd2 {[%clk 0:03:03.6]} 3... Nc6 {[%clk 0:02:56.3]}
4. Ngf3 {[%clk 0:02:42.3]} 4... Nf6 {[%clk 0:02:56]} 5. e5 {[%clk 0:02:37]} 5...
Nd7 {[%clk 0:02:51.7]} 6. Bb5 {[%clk 0:02:21.7]} 6... a6 {[%clk 0:02:46.3]} 7.
Bd3 {[%clk 0:02:22.1]} 7... Nb4 {[%clk 0:02:43.6]} 8. Be2 {[%clk 0:02:21.7]}
8... c5 {[%clk 0:02:44.6]} 9. c3 {[%clk 0:02:20.9]} 9... Nc6 {[%clk 0:02:45]}
10. O-O {[%clk 0:02:21.1]} 10... g6 {[%clk 0:02:37.7]} 11. Re1 {[%clk
0:02:19.4]} 11... Bg7 {[%clk 0:02:38.8]} 12. Nb3 {[%clk 0:02:18.8]} 12... O-O
{[%clk 0:02:39.1]} 13. Bg5 {[%clk 0:02:17]} 13... Qc7 {[%clk 0:02:37.4]} 14. Qd2
{[%clk 0:02:15.3]} 14... c4 {[%clk 0:02:25.2]} 15. Nc1 {[%clk 0:02:16]} 15... f6
{[%clk 0:02:21.8]} 16. exf6 {[%clk 0:02:15]} 16... Nxf6 {[%clk 0:02:23.7]} 17.
Bf4 {[%clk 0:02:03.9]} 17... Qf7 {[%clk 0:02:03.2]} 18. Bd6 {[%clk 0:01:54.4]}
18... Rd8 {[%clk 0:02:00.6]} 19. Ng5 {[%clk 0:01:52.5]} 19... Qd7 {[%clk
0:01:48.3]} 20. Bg3 {[%clk 0:01:52.7]} 20... h6 {[%clk 0:01:48.5]} 21. Nf3
{[%clk 0:01:53.2]} 21... Ne4 {[%clk 0:01:49.2]} 22. Qd1 {[%clk 0:01:42.3]} 22...
b5 {[%clk 0:01:44.2]} 23. Nd2 {[%clk 0:01:43.2]} 23... Nxg3 {[%clk 0:01:41.2]}
24. hxg3 {[%clk 0:01:45.1]} 24... e5 {[%clk 0:01:39.8]} 25. dxe5 {[%clk
0:01:42.9]} 25... Nxe5 {[%clk 0:01:41.7]} 26. Nf3 {[%clk 0:01:43.3]} 26... Nc6
{[%clk 0:01:10.7]} 27. Nh4 {[%clk 0:01:38.6]} 27... g5 {[%clk 0:01:09]} 28. Nf3
{[%clk 0:01:00]} 28... d4 {[%clk 0:01:04.3]} 29. cxd4 {[%clk 0:01:00]} 29...
Nxd4 {[%clk 0:01:06.2]} 30. Nxd4 {[%clk 0:01:00.9]} 30... Bxd4 {[%clk
0:01:07.1]} 31. Qc2 {[%clk 0:01:01]} 31... Bb7 {[%clk 0:01:00.5]} 32. Bd1 {[%clk
0:00:31.9]} 32... Kg7 {[%clk 0:00:57]} 33. Ne2 {[%clk 0:00:31.7]} 33... Bf6
{[%clk 0:00:55.7]} 34. Nc3 {[%clk 0:00:30]} 34... Re8 {[%clk 0:00:50.2]} 35. Bh5
{[%clk 0:00:29.4]} 35... Qc6 {[%clk 0:00:41]} 36. Qg6+ {[%clk 0:00:28.4]} 36...
Kf8 {[%clk 0:00:32.7]} 37. Qf7# {[%clk 0:00:29.2]} 1-0

[Event "*** Titled Tuesday 3|2 Blitz"]
[Site "Chess.com"]
[Date "2015.09.01"]
[Round "2"]
[White "Haridaskesavan"]
[Black "Grootneus"]
[Result "0-1"]
[WhiteElo "1999"]
[BlackElo "1995"]
[TimeControl "180+2"]
[EndTime "11:20:29 PDT"]
[Termination "Grootneus won on time"]

1. e4 {[%clk 0:03:01.1]} 1... c5 {[%clk 0:03:00.2]} 2. c3 {[%clk 0:03:00.8]}
2... Nf6 {[%clk 0:03:00.7]} 3. d3 {[%clk 0:03:01.2]} 3... d5 {[%clk 0:02:59.2]}
4. Nd2 {[%clk 0:03:01.4]} 4... dxe4 {[%clk 0:02:59.8]} 5. dxe4 {[%clk 0:03:02]}
5... Nc6 {[%clk 0:03:01]} 6. Ngf3 {[%clk 0:03:02.9]} 6... g6 {[%clk 0:03:02.4]}
7. Bc4 {[%clk 0:03:01.8]} 7... Bg7 {[%clk 0:03:03.5]} 8. O-O {[%clk 0:03:02.4]}
8... O-O {[%clk 0:03:04.6]} 9. Re1 {[%clk 0:03:00.6]} 9... e5 {[%clk 0:03:02.2]}
10. Qe2 {[%clk 0:02:57.8]} 10... a6 {[%clk 0:02:58.7]} 11. a4 {[%clk 0:02:56.5]}
11... Qe7 {[%clk 0:02:55.4]} 12. Ba2 {[%clk 0:02:55.5]} 12... Be6 {[%clk
0:02:56]} 13. Nc4 {[%clk 0:02:52.2]} 13... b5 {[%clk 0:02:53.6]} 14. Nb6 {[%clk
0:02:45.5]} 14... Bxa2 {[%clk 0:02:50.6]} 15. Rxa2 {[%clk 0:02:42.1]} 15... Rab8
{[%clk 0:02:49.4]} 16. Nd5 {[%clk 0:02:39.6]} 16... Nxd5 {[%clk 0:02:46.4]} 17.
exd5 {[%clk 0:02:40.3]} 17... Nd8 {[%clk 0:02:42.3]} 18. axb5 {[%clk 0:02:35.6]}
18... axb5 {[%clk 0:02:43.2]} 19. Be3 {[%clk 0:01:54.9]} 19... f5 {[%clk
0:02:37.4]} 20. Ra6 {[%clk 0:01:46.9]} 20... Qb7 {[%clk 0:02:12.5]} 21. Rea1
{[%clk 0:01:35.5]} 21... Qxd5 {[%clk 0:02:12.2]} 22. Ra7 {[%clk 0:01:18.6]}
22... Nc6 {[%clk 0:02:03.8]} 23. Rc7 {[%clk 0:01:11]} 23... Rfc8 {[%clk
0:01:58.3]} 24. Rxc8+ {[%clk 0:01:05.8]} 24... Rxc8 {[%clk 0:02:00.2]} 25. Qxb5
{[%clk 0:01:05.6]} 25... e4 {[%clk 0:01:58.1]} 26. Nd2 {[%clk 0:00:59.4]} 26...
Ne5 {[%clk 0:01:44.1]} 27. Ra7 {[%clk 0:00:44.6]} 27... Ng4 {[%clk 0:01:12.5]}
28. Rd7 {[%clk 0:00:28.1]} 28... Qc6 {[%clk 0:00:39.8]} 29. Qc4+ {[%clk
0:00:24.9]} 29... Kh8 {[%clk 0:00:35.5]} 30. Qf7 {[%clk 0:00:20.6]} 30... Qf6
{[%clk 0:00:31.8]} 0-1

[Event "*** Titled Tuesday 3|2 Blitz"]
[Site "Chess.com"]
[Date "2015.09.01"]
[Round "2"]
[White "WanderingPuppet"]
[Black "lukas_111111"]
[Result "0-1"]
[WhiteElo "2170"]
[BlackElo "2212"]
[TimeControl "180+2"]
[EndTime "11:20:34 PDT"]
[Termination "lukas_111111 won by resignation"]

1. e4 {[%clk 0:03:01.9]} 1... d6 {[%clk 0:03:00.7]} 2. d4 {[%clk 0:03:02.7]}
2... Nf6 {[%clk 0:03:01.5]} 3. Nc3 {[%clk 0:03:04.2]} 3... g6 {[%clk 0:03:02.6]}
4. f3 {[%clk 0:03:05.8]} 4... Bg7 {[%clk 0:03:03.5]} 5. Be3 {[%clk 0:03:07.7]}
5... c6 {[%clk 0:03:04.5]} 6. Qd2 {[%clk 0:03:09.1]} 6... h5 {[%clk 0:03:05.1]}
7. Nge2 {[%clk 0:03:10.3]} 7... Nbd7 {[%clk 0:03:05.8]} 8. Nc1 {[%clk
0:03:08.4]} 8... Qc7 {[%clk 0:03:01.2]} 9. Nb3 {[%clk 0:03:09.8]} 9... b5 {[%clk
0:02:56.3]} 10. a4 {[%clk 0:03:10.6]} 10... b4 {[%clk 0:02:56.5]} 11. Na2 {[%clk
0:03:12]} 11... a5 {[%clk 0:02:56.1]} 12. c3 {[%clk 0:03:13.5]} 12... bxc3
{[%clk 0:02:53.5]} 13. Nxc3 {[%clk 0:03:11.3]} 13... Rb8 {[%clk 0:02:54.2]} 14.
Nc1 {[%clk 0:03:11.9]} 14... O-O {[%clk 0:02:48.7]} 15. Bc4 {[%clk 0:03:12.7]}
15... d5 {[%clk 0:02:47.9]} 16. exd5 {[%clk 0:03:04.7]} 16... Nb6 {[%clk
0:02:48.1]} 17. Bd3 {[%clk 0:02:56.5]} 17... Nbxd5 {[%clk 0:02:45.2]} 18. O-O
{[%clk 0:02:49.6]} 18... Nxe3 {[%clk 0:02:43.9]} 19. Qxe3 {[%clk 0:02:51.5]}
19... Rxb2 {[%clk 0:02:39.2]} 20. N1e2 {[%clk 0:02:52.4]} 20... Rb4 {[%clk
0:02:13.5]} 21. Rac1 {[%clk 0:02:52]} 21... Qb6 {[%clk 0:02:10.2]} 22. Qf2
{[%clk 0:02:43.9]} 22... Ba6 {[%clk 0:02:03.3]} 23. Bxa6 {[%clk 0:02:44.1]}
23... Qxa6 {[%clk 0:02:04.3]} 24. Rfd1 {[%clk 0:02:42.5]} 24... Rb2 {[%clk
0:01:56.6]} 25. Qg3 {[%clk 0:02:40.1]} 25... Rxe2 {[%clk 0:01:55]} 26. Nxe2
{[%clk 0:02:42]} 26... Qxe2 {[%clk 0:01:55.5]} 27. Re1 {[%clk 0:02:43.9]} 27...
Qd2 {[%clk 0:01:56.2]} 28. Rxc6 {[%clk 0:02:44.4]} 28... Qxd4+ {[%clk
0:01:52.5]} 29. Kh1 {[%clk 0:02:43.3]} 29... h4 {[%clk 0:01:51]} 30. Qe5 {[%clk
0:02:38.2]} 30... Qxa4 {[%clk 0:01:47]} 31. Rcc1 {[%clk 0:02:31.9]} 31... h3
{[%clk 0:01:38.4]} 32. gxh3 {[%clk 0:02:31.8]} 32... Qh4 {[%clk 0:01:15.3]} 33.
Qg3 {[%clk 0:02:29.8]} 33... Qh6 {[%clk 0:01:14.8]} 34. Rc5 {[%clk 0:02:15.3]}
34... a4 {[%clk 0:01:10.3]} 35. h4 {[%clk 0:01:59.6]} 35... a3 {[%clk
0:01:02.3]} 36. Qg5 {[%clk 0:01:54.4]} 36... Qxg5 {[%clk 0:00:57.7]} 37. hxg5
{[%clk 0:01:56.3]} 37... Nh5 {[%clk 0:00:58.6]} 38. Rc2 {[%clk 0:01:43.6]} 38...
Bb2 {[%clk 0:00:46.8]} 39. Kg2 {[%clk 0:01:37.8]} 39... Nf4+ {[%clk 0:00:46]}
40. Kg3 {[%clk 0:01:37.5]} 40... Ne6 {[%clk 0:00:46.9]} 41. h4 {[%clk
0:01:34.8]} 41... Ra8 {[%clk 0:00:47.2]} 42. Rb1 {[%clk 0:01:34.2]} 42... Be5+
{[%clk 0:00:41.7]} 43. f4 {[%clk 0:01:32.9]} 43... Nxf4 {[%clk 0:00:36]} 44. Ra2
{[%clk 0:01:31.7]} 44... Nd5+ {[%clk 0:00:33.6]} 45. Kf3 {[%clk 0:01:29.5]}
45... Nc3 {[%clk 0:00:34.6]} 46. Rba1 {[%clk 0:01:29]} 46... Nxa2 {[%clk
0:00:34.8]} 47. Rxa2 {[%clk 0:01:30.9]} 47... Bb2 {[%clk 0:00:35.5]} 48. Ke4
{[%clk 0:01:31.6]} 48... Ra4+ {[%clk 0:00:36]} 49. Kd3 {[%clk 0:01:32.5]} 49...
Rxh4 {[%clk 0:00:36]} 50. Kc2 {[%clk 0:01:34.4]} 50... Rg4 {[%clk 0:00:36.4]}
51. Kb3 {[%clk 0:01:36.3]} 51... Rxg5 {[%clk 0:00:37.4]} 52. Kc2 {[%clk
0:01:37.5]} 52... Rd5 {[%clk 0:00:37.2]} 53. Kb3 {[%clk 0:01:39.4]} 53... f5
{[%clk 0:00:37.6]} 54. Kc4 {[%clk 0:01:41.3]} 54... Rd8 {[%clk 0:00:37.7]} 55.
Rxa3 {[%clk 0:01:43.2]} 55... Bxa3 {[%clk 0:00:37.6]} 56. Kb3 {[%clk 0:01:44.9]}
0-1

[Event "*** Titled Tuesday 3|2 Blitz"]
[Site "Chess.com"]
[Date "2015.09.01"]
[Round "2"]
[White "DanielNaroditsky"]
[Black "bugsbunny444"]
[Result "1-0"]
[WhiteElo "2500"]
[BlackElo "2297"]
[TimeControl "180+2"]
[EndTime "11:20:40 PDT"]
[Termination "DanielNaroditsky won by resignation"]

1. d4 {[%clk 0:03:01.9]} 1... e6 {[%clk 0:03:01]} 2. c4 {[%clk 0:03:02]} 2... b6
{[%clk 0:03:02]} 3. Nc3 {[%clk 0:02:59.4]} 3... Bb7 {[%clk 0:03:03.1]} 4. Nf3
{[%clk 0:03:00.6]} 4... f5 {[%clk 0:03:03.5]} 5. g3 {[%clk 0:03:00.5]} 5... Nf6
{[%clk 0:03:02.6]} 6. Bg2 {[%clk 0:03:01.5]} 6... Bb4 {[%clk 0:03:03.8]} 7. Bd2
{[%clk 0:03:02.5]} 7... O-O {[%clk 0:02:51.4]} 8. O-O {[%clk 0:03:03.1]} 8...
Bxc3 {[%clk 0:02:46.4]} 9. Bxc3 {[%clk 0:03:03.5]} 9... Ne4 {[%clk 0:02:47.8]}
10. Be1 {[%clk 0:03:02.6]} 10... d6 {[%clk 0:02:26.8]} 11. d5 {[%clk 0:02:51]}
11... e5 {[%clk 0:02:17]} 12. Nh4 {[%clk 0:02:52.1]} 12... Bc8 {[%clk
0:01:43.5]} 13. Qc2 {[%clk 0:02:52.4]} 13... Na6 {[%clk 0:01:02.7]} 14. Nxf5
{[%clk 0:02:41]} 14... Bxf5 {[%clk 0:00:47.1]} 15. Bxe4 {[%clk 0:02:41.3]} 15...
Bxe4 {[%clk 0:00:49]} 16. Qxe4 {[%clk 0:02:41.4]} 16... Nc5 {[%clk 0:00:50.9]}
17. Qc2 {[%clk 0:02:41.7]} 17... a5 {[%clk 0:00:51.9]} 18. b3 {[%clk 0:02:40.4]}
18... Qg5 {[%clk 0:00:30.4]} 19. Bd2 {[%clk 0:02:35.7]} 19... Qh5 {[%clk
0:00:29.9]} 20. Be3 {[%clk 0:02:36.9]} 20... Rf6 {[%clk 0:00:20.8]} 21. f3
{[%clk 0:02:37.8]} 21... Raf8 {[%clk 0:00:16.8]} 22. Rf2 {[%clk 0:02:39.1]}
22... h6 {[%clk 0:00:12.8]} 23. Raf1 {[%clk 0:02:38.6]} 23... g5 {[%clk
0:00:13.2]} 24. a3 {[%clk 0:02:25.9]} 24... a4 {[%clk 0:00:08.5]} 25. b4 {[%clk
0:02:26.4]} 25... Nb3 {[%clk 0:00:09.6]} 26. c5 {[%clk 0:02:15.7]} 26... bxc5
{[%clk 0:00:10.5]} 27. bxc5 {[%clk 0:02:16.8]} 27... Qf7 {[%clk 0:00:12.2]} 28.
Qc4 {[%clk 0:02:15.3]} 28... Ra8 {[%clk 0:00:09.8]} 29. f4 {[%clk 0:02:11.1]}
29... exf4 {[%clk 0:00:06.6]} 30. gxf4 {[%clk 0:02:12.2]} 30... g4 {[%clk
0:00:08.5]} 31. f5 {[%clk 0:02:11]} 31... Kh7 {[%clk 0:00:09.8]} 32. Rg2 {[%clk
0:01:59.2]} 32... Nxc5 {[%clk 0:00:10.1]} 33. Bxc5 {[%clk 0:01:58.9]} 33... dxc5
{[%clk 0:00:11.5]} 34. Qxg4 {[%clk 0:01:56.8]} 34... c4 {[%clk 0:00:05.6]} 35.
e4 {[%clk 0:01:51.5]} 35... Re8 {[%clk 0:00:05.2]} 36. Rc1 {[%clk 0:01:44.9]}
36... c6 {[%clk 0:00:06.5]} 37. Qg6+ {[%clk 0:01:11.6]} 37... Rxg6 {[%clk
0:00:06.2]} 38. fxg6+ {[%clk 0:01:11.9]} 38... Qxg6 {[%clk 0:00:05.3]} 39. Rxg6
{[%clk 0:01:13.5]} 39... Kxg6 {[%clk 0:00:07.2]} 40. dxc6 {[%clk 0:01:15]} 40...
Rxe4 {[%clk 0:00:03.9]} 41. c7 {[%clk 0:01:16.3]} 41... Re8 {[%clk 0:00:04.5]}
42. Rxc4 {[%clk 0:01:17.9]} 42... Rc8 {[%clk 0:00:05.9]} 43. Kf2 {[%clk
0:01:18.9]} 43... Kf5 {[%clk 0:00:06.8]} 44. Kg3 {[%clk 0:01:20.4]} 44... Ke5
{[%clk 0:00:06.4]} 45. Kg4 {[%clk 0:01:21.9]} 45... Kd5 {[%clk 0:00:07.9]} 46.
Rc1 {[%clk 0:01:20.9]} 46... Kd6 {[%clk 0:00:05.8]} 47. Kh5 {[%clk 0:01:21.9]}
47... Kd7 {[%clk 0:00:03.9]} 48. Kxh6 {[%clk 0:01:22.5]} 48... Rh8+ {[%clk
0:00:05]} 49. Kg7 {[%clk 0:01:23.5]} 49... Re8 {[%clk 0:00:02.6]} 50. c8=Q+
{[%clk 0:01:22.6]} 1-0